Workbook

Sheet титул
B2: Согласовано | L2: Утверждаю
B3: Начальник управления образования | L3: Директор школы
B5: _____________________ Р.Н.Хузин | L5: _______________ И.А.Бодрова
A10: Комплектование
A11: на 2023-2024 учебный год
A12: Муниципального бюджетного общеобразовательного учреждения города Набережные Челны
A13: "Средняя общеобразовательная школа № 10"
B29: Согласовано | D29: Л.В.Золотарева
D30: С.Р.Мулюкова

Sheet компл кл
A2: Комплектование классов на 2023-2024 учебный год (на 1 сентября 2023 года)
A3: по учреждению МБОУ "Средняя общеобразовательная школа №10"
A5: Класс | B5: Количество обучающихся всего | D5: в том числе по программам обучения | N5: в том числе количество учеников на домашнем обучении | P5: язык обучения
D6: Общеобразовательные | F6: Естественно-научные | H6: Гуманитарные | J6: Технические | L6: Социально-экономические
B7: 2022-23 | C7: 2023-24 | D7: 2022-23 | E7: 2023-24 | F7: 2022-23 | G7: 2023-24 | H7: 2022-23 | I7: 2023-24 | J7: 2022-23 | K7: 2023-24 | L7: 2022-23 | M7: 2023-24 | N7: 2022-23 | O7: 2023-24 | P7: 2023-24
A8: 1а | C8: 38 | E8: 38 | F8: 0 | G8: 0 | H8: 0 | I8: 0 | J8: 0 | K8: 0 | L8: 0 | M8: 0 | N8: 0 | O8: 1 | P8: Рус.
A9: 1б | C9: 38 | E9: 38 | F9: 0 | G9: 0 | H9: 0 | I9: 0 | J9: 0 | K9: 0 | L9: 0 | M9: 0 | N9: 0 | O9: 0 | P9: Рус.
A10: 1в | C10: 37 | E10: 37 | F10: 0 | G10: 0 | H10: 0 | I10: 0 | J10: 0 | K10: 0 | L10: 0 | M10: 0 | N10: 0 | O10: 0 | P10: Рус.
A11: 1г | C11: 35 | E11: 35 | F11: 0 | G11: 0 | H11: 0 | I11: 0 | J11: 0 | K11: 0 | L11: 0 | M11: 0 | N11: 0 | O11: 2 | P11: Рус.
A12: итого по 1 классам | C12: =SUM(C8:C11) -> 148 | E12: =SUM(E8:E11) -> 148 | F12: 0 | G12: 0 | H12: 0 | I12: 0 | J12: 0 | K12: 0 | L12: 0 | M12: 0 | N12: 0 | O12: 3
A13: 2а | B13: 34 | C13: 31 | D13: 34 | E13: 31 | F13: 0 | G13: 0 | H13: 0 | I13: 0 | J13: 0 | K13: 0 | L13: 0 | M13: 0 | N13: 0 | O13: 1 | P13: Рус.
A14: 2б | B14: 34 | C14: 34 | D14: 34 | E14: 34 | F14: 0 | G14: 0 | H14: 0 | I14: 0 | J14: 0 | K14: 0 | L14: 0 | M14: 0 | N14: 1 | O14: 2 | P14: Рус.
A15: 2в | B15: 33 | C15: 33 | D15: 33 | E15: 33 | F15: 0 | G15: 0 | H15: 0 | I15: 0 | J15: 0 | K15: 0 | L15: 0 | M15: 0 | N15: 1 | O15: 0 | P15: Рус.
A16: 2г | B16: 35 | C16: 34 | D16: 35 | E16: 34 | F16: 0 | G16: 0 | H16: 0 | I16: 0 | J16: 0 | K16: 0 | L16: 0 | M16: 0 | N16: 0 | O16: 0 | P16: Рус.
A17: 2д | B17: 30 | C17: 33 | D17: 30 | E17: 33 | F17: 0 | G17: 0 | H17: 0 | I17: 0 | J17: 0 | K17: 0 | L17: 0 | M17: 0 | N17: 0 | O17: 0 | P17: Рус.
A18: итого по 2 классам | B18: =SUM(B13:B17) -> 166 | C18: =SUM(C13:C17) -> 165 | D18: =SUM(D13:D17) -> 166 | E18: =SUM(E13:E17) -> 165 | F18: 0 | G18: 0 | H18: 0 | I18: 0 | J18: 0 | K18: 0 | L18: 0 | M18: 0 | N18: 2 | O18: 3
A19: 3а | B19: 38 | C19: 37 | D19: 38 | E19: 37 | F19: 0 | G19: 0 | H19: 0 | I19: 0 | J19: 0 | K19: 0 | L19: 0 | M19: 0 | N19: 2 | O19: 2 | P19: Рус.
A20: 3б | B20: 33 | C20: 34 | D20: 33 | E20: 34 | F20: 0 | G20: 0 | H20: 0 | I20: 0 | J20: 0 | K20: 0 | L20: 0 | M20: 0 | N20: 0 | O20: 0 | P20: Рус.
A21: 3в | B21: 36 | C21: 36 | D21: 36 | E21: 36 | F21: 0 | G21: 0 | H21: 0 | I21: 0 | J21: 0 | K21: 0 | L21: 0 | M21: 0 | N21: 0 | O21: 0 | P21: Рус.
A22: 3г | B22: 32 | C22: 33 | D22: 32 | E22: 33 | F22: 0 | G22: 0 | H22: 0 | I22: 0 | J22: 0 | K22: 0 | L22: 0 | M22: 0 | N22: 0 | O22: 0 | P22: Рус.
A23: 3д | B23: 34 | C23: 34 | D23: 34 | E23: 34 | F23: 0 | G23: 0 | H23: 0 | I23: 0 | J23: 0 | K23: 0 | L23: 0 | M23: 0 | N23: 0 | O23: 0 | P23: Рус.
A24: итого по 3 классам | B24: =SUM(B19:B23) -> 173 | C24: =SUM(C19:C23) -> 174 | D24: =SUM(D19:D23) -> 173 | E24: =SUM(E19:E23) -> 174 | F24: 0 | G24: 0 | H24: 0 | I24: 0 | J24: 0 | K24: 0 | L24: 0 | M24: 0 | N24: 2 | O24: 2
A25: 4а | B25: 31 | C25: 30 | D25: 31 | E25: 30 | F25: 0 | G25: 0 | H25: 0 | I25: 0 | J25: 0 | K25: 0 | L25: 0 | M25: 0 | N25: 0 | O25: 0 | P25: Рус.
A26: 4б | B26: 32 | C26: 33 | D26: 32 | E26: 33 | F26: 0 | G26: 0 | H26: 0 | I26: 0 | J26: 0 | K26: 0 | L26: 0 | M26: 0 | N26: 0 | O26: 0 | P26: Рус.
A27: 4в | B27: 31 | C27: 30 | D27: 31 | E27: 30 | F27: 0 | G27: 0 | H27: 0 | I27: 0 | J27: 0 | K27: 0 | L27: 0 | M27: 0 | N27: 0 | O27: 0 | P27: Рус.
A28: 4г | B28: 33 | C28: 32 | D28: 33 | E28: 32 | F28: 0 | G28: 0 | H28: 0 | I28: 0 | J28: 0 | K28: 0 | L28: 0 | M28: 0 | N28: 0 | O28: 0 | P28: Рус.
A29: 4д | B29: 31 | C29: 32 | D29: 31 | E29: 32 | F29: 0 | G29: 0 | H29: 0 | I29: 0 | J29: 0 | K29: 0 | L29: 0 | M29: 0 | N29: 0 | O29: 0 | P29: Рус.
A30: итого по 4 классам | B30: =SUM(B25:B29) -> 158 | C30: =SUM(C25:C29) -> 157 | D30: =SUM(D25:D29) -> 158 | E30: =SUM(E25:E29) -> 157 | F30: 0 | G30: 0 | H30: 0 | I30: 0 | J30: =J25+J26+J27 -> 0 | K30: 0 | L30: =L25+L26+L27 -> 0 | M30: 0 | N30: 0 | O30: 0
A31: 5а | B31: 31 | C31: 30 | D31: 31 | E31: 30 | F31: 0 | G31: 0 | H31: 0 | I31: 0 | J31: 0 | K31: 0 | L31: 0 | M31: 0 | N31: 1 | O31: 0 | P31: Рус.
A32: 5б | B32: 36 | C32: 31 | D32: 36 | E32: 31 | F32: 0 | G32: 0 | H32: 0 | I32: 0 | J32: 0 | K32: 0 | L32: 0 | M32: 0 | N32: 0 | O32: 0 | P32: Рус.
A33: 5в | B33: 33 | C33: 28 | D33: 33 | E33: 28 | F33: 0 | G33: 0 | H33: 0 | I33: 0 | J33: 0 | K33: 0 | L33: 0 | M33: 0 | N33: 1 | O33: 0 | P33: Рус.
A34: 5г | B34: 30 | C34: 25 | D34: 30 | E34: 25 | F34: 0 | G34: 0 | H34: 0 | I34: 0 | J34: 0 | K34: 0 | L34: 0 | M34: 0 | N34: 1 | O34: 0 | P34: Рус.
A35: 5д | B35: 34 | C35: 30 | D35: 34 | E35: 30 | F35: 0 | G35: 0 | H35: 0 | I35: 0 | J35: 0 | K35: 0 | L35: 0 | M35: 0 | N35: 0 | O35: 0 | P35: Рус.
A36: 5е | C36: 29 | E36: 29 | F36: 0 | G36: 0 | H36: 0 | I36: 0 | J36: 0 | K36: 0 | L36: 0 | M36: 0 | N36: 0 | O36: 0 | P36: Рус.
A37: итого по 5 классам | B37: =SUM(B31:B35) -> 164 | C37: =SUM(C31:C36) -> 173 | D37: =SUM(D31:D35) -> 164 | E37: =SUM(E31:E36) -> 173 | F37: 0 | G37: 0 | H37: 0 | I37: 0 | J37: =J31+J32+J33 -> 0 | K37: 0 | L37: =L31+L32+L33 -> 0 | M37: 0 | N37: 3 | O37: 0
A38: 6а | B38: 34 | C38: 34 | D38: 34 | E38: 34 | F38: 0 | G38: 0 | H38: 0 | I38: 0 | J38: 0 | K38: 0 | L38: 0 | M38: 0 | N38: 0 | O38: 0 | P38: Рус.
A39: 6б | B39: 25 | C39: 26 | D39: 25 | E39: 26 | F39: 0 | G39: 0 | H39: 0 | I39: 0 | J39: 0 | K39: 0 | L39: 0 | M39: 0 | N39: 0 | O39: 0 | P39: Рус.
A40: 6в | B40: 27 | C40: 28 | D40: 27 | E40: 28 | F40: 0 | G40: 0 | H40: 0 | I40: 0 | J40: 0 | K40: 0 | L40: 0 | M40: 0 | N40: 0 | O40: 0 | P40: Рус.
A41: 6г | B41: 33 | C41: 33 | D41: 33 | E41: 33 | F41: 0 | G41: 0 | H41: 0 | I41: 0 | J41: 0 | K41: 0 | L41: 0 | M41: 0 | N41: 0 | O41: 0 | P41: Рус.
A42: 6д | B42: 26 | C42: 26 | D42: 26 | E42: 25 | F42: 0 | G42: 0 | H42: 0 | I42: 0 | J42: 0 | K42: 0 | L42: 0 | M42: 0 | N42: 0 | O42: 0 | P42: Рус
A43: итого по 6 классам | B43: =SUM(B38:B42) -> 145 | C43: =SUM(C38:C42) -> 147 | D43: =SUM(D38:D42) -> 145 | E43: 147 | F43: 0 | G43: 0 | H43: 0 | I43: 0 | J43: =J38+J39+J40 -> 0 | K43: 0 | L43: =L38+L39+L40 -> 0 | M43: 0 | N43: 0 | O43: 0
A44: 7а | B44: 27 | C44: 28 | D44: 27 | E44: 28 | F44: 0 | G44: 0 | H44: 0 | I44: 0 | J44: 0 | K44: 0 | L44: 0 | M44: 0 | N44: 0 | O44: 0 | P44: Рус.
A45: 7б | B45: 26 | C45: 26 | D45: 26 | E45: 26 | F45: 0 | G45: 0 | H45: 0 | I45: 0 | J45: 0 | K45: 0 | L45: 0 | M45: 0 | N45: 1 | O45: 1 | P45: Рус.
A46: 7в | B46: 27 | C46: 25 | D46: 27 | E46: 25 | F46: 0 | G46: 0 | H46: 0 | I46: 0 | J46: 0 | K46: 0 | L46: 0 | M46: 0 | N46: 0 | O46: 0 | P46: Рус.
A47: 7г | B47: 25 | C47: 25 | D47: 25 | E47: 25 | F47: 0 | G47: 0 | H47: 0 | I47: 0 | J47: 0 | K47: 0 | L47: 0 | M47: 0 | N47: 0 | O47: 0 | P47: Рус.
A48: 7д | B48: 27 | C48: 25 | D48: 27 | E48: 25 | F48: 0 | G48: 0 | H48: 0 | I48: 0 | J48: 0 | K48: 0 | L48: 0 | M48: 0 | N48: 1 | O48: 1 | P48: Рус.
A49: итого по 7 классам | B49: =SUM(B44:B48) -> 132 | C49: =SUM(C44:C48) -> 129 | D49: =SUM(D44:D48) -> 132 | E49: =SUM(E44:E48) -> 129 | F49: 0 | G49: 0 | H49: 0 | I49: 0 | J49: =J44+J45+J46 -> 0 | K49: 0 | L49: =L44+L45+L46 -> 0 | M49: 0 | N49: 2 | O49: 2
A50: 8а | B50: 28 | C50: 28 | D50: 28 | E50: 28 | F50: 0 | G50: 0 | H50: 0 | I50: 0 | J50: 0 | K50: 0 | L50: 0 | M50: 0 | N50: 0 | O50: 0 | P50: Рус.
A51: 8б | B51: 27 | C51: 27 | D51: 27 | E51: 27 | F51: 0 | G51: 0 | H51: 0 | I51: 0 | J51: 0 | K51: 0 | L51: 0 | M51: 0 | N51: 0 | O51: 0 | P51: Рус.
A52: 8в | B52: 31 | C52: 31 | D52: 31 | E52: 31 | F52: 0 | G52: 0 | H52: 0 | I52: 0 | J52: 0 | K52: 0 | L52: 0 | M52: 0 | N52: 0 | O52: 1 | P52: Рус.
A53: 8г | B53: 32 | C53: 32 | D53: 32 | E53: 32 | F53: 0 | G53: 0 | H53: 0 | I53: 0 | J53: 0 | K53: 0 | L53: 0 | M53: 0 | N53: 0 | O53: 0 | P53: Рус.
A54: 8д | B54: 31 | C54: 29 | D54: 31 | E54: 29 | F54: 0 | G54: 0 | H54: 0 | I54: 0 | J54: 0 | K54: 0 | L54: 0 | M54: 0 | N54: 0 | O54: 0 | P54: Рус.
A55: итого по 8 классам | B55: =SUM(B50:B54) -> 149 | C55: =SUM(C50:C54) -> 147 | D55: =SUM(D50:D54) -> 149 | E55: =SUM(E50:E54) -> 147 | F55: 0 | G55: 0 | H55: 0 | I55: =SUM(I50:I54) -> 0 | J55: =J50+J51+J52+J53 -> 0 | K55: 0 | L55: 0 | M55: 0 | N55: 0 | O55: 1
A56: 9а | B56: 30 | C56: 31 | D56: 0 | E56: 0 | F56: 0 | G56: 0 | H56: 30 | I56: 31 | J56: 0 | K56: 0 | L56: 0 | M56: 0 | N56: 0 | O56: 0 | P56: Рус.
A57: 9б | B57: 29 | C57: 29 | D57: 29 | E57: 29 | F57: 0 | G57: 0 | H57: 0 | I57: 0 | J57: 0 | K57: 0 | L57: 0 | M57: 0 | N57: 0 | O57: 0 | P57: Рус.
A58: 9в | B58: 29 | C58: 30 | D58: 29 | E58: 30 | F58: 0 | G58: 0 | H58: 0 | I58: 0 | J58: 0 | K58: 0 | L58: 0 | M58: 0 | N58: 0 | O58: 0 | P58: Рус.
A59: 9г | B59: 29 | C59: 29 | D59: 29 | E59: 29 | F59: 0 | G59: 0 | H59: 0 | I59: 0 | J59: 0 | K59: 0 | L59: 0 | M59: 0 | N59: 1 | O59: 1 | P59: Рус.
A60: 9д | B60: 32 | C60: 32 | D60: 32 | E60: 32 | F60: 0 | G60: 0 | H60: 0 | I60: 0 | J60: 0 | K60: 0 | L60: 0 | M60: 0 | N60: 0 | O60: 0 | P60: Рус.
A61: итого по 9 классам | B61: =SUM(B56:B60) -> 149 | C61: =SUM(C56:C60) -> 151 | D61: =SUM(D56:D60) -> 119 | E61: =SUM(E57:E60) -> 120 | F61: 0 | G61: 0 | H61: 30 | I61: 31 | J61: =J56+J57+J58+J59 -> 0 | K61: 0 | L61: 0 | M61: 0 | N61: 1 | O61: 1
A62: 10а | C62: 28 | F62: 0 | G62: 28 | H62: 0 | I62: 0 | J62: 0 | K62: 0 | L62: 0 | M62: 0 | N62: 0 | O62: 0 | P62: Рус.
A63: 10б | C63: 30 | F63: 0 | G63: 0 | H63: 0 | I63: 0 | J63: 0 | K63: 0 | L63: 0 | M63: 30 | N63: 0 | O63: 0 | P63: Рус.
A64: итого по 10 классам | C64: =SUM(C62:C63) -> 58 | F64: 0 | G64: 28 | H64: 0 | I64: 0 | J64: 0 | K64: 0 | L64: 0 | M64: 30 | N64: 0 | O64: 0
A65: 11а | B65: 26 | C65: 26 | D65: 0 | F65: 26 | G65: 26 | H65: 0 | I65: 0 | J65: 0 | K65: 0 | L65: 0 | M65: 0 | N65: 0 | O65: 0 | P65: Рус.
A66: 11б | B66: 28 | C66: 30 | D66: 0 | F66: 0 | G66: 0 | H66: 0 | I66: 0 | J66: 0 | K66: 0 | L66: 28 | M66: 30 | N66: 0 | O66: 0 | P66: Рус.
A67: итого по 11 классам | B67: 54 | C67: =SUM(C65:C66) -> 56 | D67: 0 | F67: =SUM(F65:F66) -> 26 | G67: 26 | H67: 0 | I67: 0 | J67: 0 | K67: 0 | L67: 28 | M67: 30 | N67: 0 | O67: 0
A68: итого по 1 -11 классам | B68: 1290 | C68: 1505 | D68: 1206 | E68: 1360 | F68: 26 | G68: 54 | H68: 30 | I68: 31 | J68: 0 | K68: 0 | L68: 28 | M68: 60 | N68: 10 | O68: 12
F71: _________________ | H71: И.А.Бодрова

Sheet свод
A2: Комплектование классов на 2023-2024 учебный год (на 1 сентября 2023 года)
A3: по учреждению МБОУ "Средняя общеобразовательная школа № 10"
A5: Паралель | B5: комплектование классов | H5: комплектование групп дополнительного образования (кружковая работа) | N5: комплектование групп продленного дня
B6: кол-во классов | D6: кол-во уч-ся | F6: наполняемость | H6: кол-во групп | J6: кол-во уч-ся | L6: наполняемость | N6: кол-во групп | P6: кол-во уч-ся | R6: наполняемость
B7: 2022-23 | C7: 2023-24 | D7: 2022-23 | E7: 2023-24 | F7: 2022-23 | G7: 2023-24 | H7: 2022-23 | I7: 2023-24 | J7: 2022-23 | K7: 2023-24 | L7: 2022-23 | M7: 2023-24 | N7: 2022-23 | O7: 2023-24 | P7: 2022-23 | Q7: 2022-23 | R7: 2022-23 | S7: 2022-23
A8: 1 | B8: 5 | C8: 4 | D8: 166 | E8: 148 | F8: 33.2 | G8: 37 | H8: 8 | I8: 8 | J8: 166 | K8: 148 | L8: 20.7 | M8: 18.5 | N8: 5 | O8: 4 | P8: 164 | Q8: 145 | R8: 32.8 | S8: 36.2
A9: 2 | B9: 5 | C9: 5 | D9: 173 | E9: 165 | F9: 34.6 | G9: 33 | H9: 8 | I9: 7 | J9: 120 | K9: 105 | L9: 15 | M9: 15 | N9: 5 | O9: 5 | P9: 171 | Q9: 162 | R9: 34.2 | S9: 32.4
A10: 3 | B10: 5 | C10: 5 | D10: 158 | E10: 174 | F10: 31.6 | G10: 34.8 | H10: 8 | I10: 8 | J10: 120 | K10: 120 | L10: 15 | M10: 15 | N10: 5 | O10: 5 | P10: 158 | Q10: 172 | R10: 31.6 | S10: 34.4
A11: 4 | B11: 5 | C11: 5 | D11: 164 | E11: 157 | F11: 32.8 | G11: 31.4 | H11: 6 | I11: 6 | J11: 90 | K11: 90 | L11: 15 | M11: 15 | N11: 5 | O11: 5 | P11: 162 | Q11: 157 | R11: 32.4 | S11: 31.4
A12: 1-4 классы | B12: 20 | C12: 19 | D12: =SUM(D8:D11) -> 661 | E12: =SUM(E8:E11) -> 644 | F12: 33 | G12: 33.9 | H12: 30 | I12: 29 | J12: =SUM(J8:J11) -> 496 | K12: =SUM(K8:K11) -> 463 | L12: 16.5 | M12: 15.9 | N12: 20 | O12: 19 | P12: =SUM(P8:P11) -> 655 | Q12: 636 | R12: 32.8 | S12: 33.5
A13: 5 | B13: 5 | C13: 6 | D13: 145 | E13: 173 | F13: 29 | G13: 28.8 | H13: 3 | I13: 4 | J13: 45 | K13: 60 | L13: 15 | M13: 15
A14: 6 | B14: 5 | C14: 5 | D14: 132 | E14: 147 | F14: 26.4 | G14: 29.4 | H14: 6 | I14: 6 | J14: 90 | K14: 90 | L14: 15 | M14: 15
A15: 7 | B15: 5 | C15: 5 | D15: 149 | E15: 129 | F15: 29.8 | G15: 25.8 | H15: 4 | I15: 5 | J15: 60 | K15: 75 | L15: 15 | M15: 15
A16: 8 | B16: 5 | C16: 5 | D16: 149 | E16: 147 | F16: 29.8 | G16: 29.4 | H16: 7 | I16: 7 | J16: 105 | K16: 105 | L16: 15 | M16: 15
A17: 9 | B17: 5 | C17: 5 | D17: 131 | E17: 151 | F17: 26.2 | G17: 30.2 | H17: 12 | I17: 12 | J17: 180 | K17: 180 | L17: 15 | M17: 15
A18: 5-9 классы | B18: 25 | C18: 26 | D18: 706 | E18: =SUM(E13:E17) -> 747 | F18: 28.2 | G18: 28.7 | H18: =SUM(H13:H17) -> 32 | I18: =SUM(I13:I17) -> 34 | J18: =SUM(J13:J17) -> 480 | K18: 510 | L18: 15 | M18: 15
A19: 10 | B19: 2 | C19: 2 | D19: 54 | E19: 58 | F19: 27 | G19: 29 | H19: 2 | I19: 3 | J19: 30 | K19: 45 | L19: 15 | M19: 15
A20: 11 | B20: 2 | C20: 2 | D20: 50 | E20: 56 | F20: 25 | G20: 28 | H20: 3 | I20: 3 | J20: 45 | K20: 45 | L20: 15 | M20: 15
A21: 10-11 классы | B21: 4 | C21: 4 | D21: 104 | E21: =SUM(E19:E20) -> 114 | F21: 26 | G21: 28.5 | H21: 5 | I21: 6 | J21: 75 | K21: 90 | L21: 15 | M21: 15
A22: 1-11 классы | B22: 49 | C22: 49 | D22: 1471 | E22: 1505 | F22: 30 | G22: 30.7 | H22: 67 | I22: 69 | J22: 1051 | K22: 1063 | L22: 15.7 | M22: 15.4 | N22: 20 | O22: 19 | P22: 655 | Q22: 636 | R22: 32.8 | S22: 33.5
A25: Директор МБОУ "СОШ №10" _______________И.А.Бодрова

Sheet родн яз
A2: Комплектование групп родного языка
A3: по учреждению МБОУ "Средняя общеобразовательная школа №10"
A5: Паралель | B5: родной язык (татарский) | F5: родной язык (русский) | J5: Итого
B6: кол-во уч-ся | C6: кол-во групп | D6: кол-во часов | E6: средняя наполняемость | F6: кол-во уч-ся | G6: кол-во групп | H6: кол-во часов | I6: средняя наполняемость | J6: кол-во уч-ся | K6: кол-во групп | L6: кол-во часов
A7: 1 | B7: 74 | C7: 5 | D7: 10 | E7: 14.8 | F7: 74 | G7: 3 | H7: 6 | I7: 24.7 | J7: 148 | K7: 8 | L7: 16
A8: 2 | B8: 84 | C8: 6 | D8: 18 | E8: 14 | F8: 81 | G8: 4 | H8: 12 | I8: 20.3 | J8: 165 | K8: 10 | L8: 30
A9: 3 | B9: 62 | C9: 5 | D9: 15 | E9: 12.4 | F9: 112 | G9: 5 | H9: 15 | I9: 22.4 | J9: 174 | K9: 10 | L9: 30
A10: 4 | B10: 61 | C10: 5 | D10: 15 | E10: 12.2 | F10: 96 | G10: 5 | H10: 15 | I10: 19.2 | J10: 157 | K10: 10 | L10: 30
A11: 1-4 классы | B11: =SUM(B7:B10) -> 281 | C11: =SUM(C7:C10) -> 21 | D11: =SUM(D7:D10) -> 58 | E11: 13.4 | F11: =SUM(F7:F10) -> 363 | G11: =SUM(G7:G10) -> 17 | H11: =SUM(H7:H10) -> 48 | I11: 21.4 | J11: =SUM(J7:J10) -> 644 | K11: =K7+K8+K9+K10 -> 38 | L11: 106
A12: 5 | B12: 69 | C12: 6 | D12: 18 | E12: 11.5 | F12: 104 | G12: 6 | H12: 18 | I12: 17.3 | J12: 173 | K12: 12 | L12: 36
A13: 6 | B13: 79 | C13: 6 | D13: 18 | E13: 13.2 | F13: 68 | G13: 4 | H13: 12 | I13: 17 | J13: 147 | K13: 10 | L13: 30
A14: 7 | B14: 70 | C14: 6 | D14: 18 | E14: 11.7 | F14: 59 | G14: 4 | H14: 12 | I14: 14.8 | J14: 129 | K14: 10 | L14: 30
A15: 8 | B15: 78 | C15: 6 | D15: 18 | E15: 13 | F15: 69 | G15: 4 | H15: 12 | I15: 17,2 | J15: 147 | K15: 10 | L15: 30
A16: 9 | B16: 82 | C16: 6 | D16: 18 | E16: 13.7 | F16: 69 | G16: 4 | H16: 12 | I16: 17.2 | J16: 151 | K16: 10 | L16: 30
A17: 5-9 классы | B17: =SUM(B12:B16) -> 378 | C17: =SUM(C12:C16) -> 30 | D17: =SUM(D12:D16) -> 90 | E17: 12.6 | F17: =SUM(F12:F16) -> 369 | G17: =SUM(G12:G16) -> 22 | H17: =SUM(H12:H16) -> 66 | I17: 16.8 | J17: =SUM(J12:J16) -> 747 | K17: =SUM(K12:K16) -> 52 | L17: =SUM(L12:L16) -> 156
A18: 10 | F18: 58 | G18: 2 | H18: 6 | I18: 29 | J18: 58 | K18: 2 | L18: 6
A19: 11 | F19: 56 | G19: 2 | H19: 2 | I19: 28 | J19: 56 | K19: 2 | L19: 2
A20: 10-11 классы | F20: 114 | G20: 4 | H20: 8 | I20: 28.5 | J20: 114 | K20: =K18+K19 -> 4 | L20: 8
A21: 1-11 классы | B21: 659 | C21: 51 | D21: 148 | E21: 12.9 | F21: 846 | G21: 43 | H21: 122 | I21: 19.7 | J21: 1505 | K21: =K11+K17+K20 -> 94 | L21: 270
B24: Директор МБОУ "СОШ №10" | F24: _________________ | H24: И.А.Бодрова

Sheet кружки
A2: Распределение часов дополнительного образования на 2023-2024 учебный год МБОУ "СОШ №10"
A4: Паралель | B4: комплектование групп дополнительного образования (кружковая работа) | E4: в том числе по направлениям
E5: техническое | G5: художественно-эстетическое | I5: военно-патриотическое | K5: социально-педагогическое, социально-экономическое | M5: естественно научное | O5: физкультурно спортивное | Q5: эколого-биологическое | S5: туристически краеведческое
B6: кол-во групп | C6: кол-во уч-ся | D6: наполняемость | E6: кол-во групп | F6: кол-во уч-ся | G6: кол-во групп | H6: кол-во уч-ся | I6: кол-во групп | J6: кол-во уч-ся | K6: кол-во групп | L6: кол-во уч-ся | M6: кол-во групп | N6: кол-во уч-ся | O6: кол-во групп | P6: кол-во уч-ся | Q6: кол-во групп | R6: кол-во уч-ся | S6: кол-во групп | T6: кол-во уч-ся
A7: 1 | B7: 8 | C7: 148 | D7: 18.5 | E7: 4 | F7: 60 | G7: 2 | H7: 30 | I7: 0 | J7: 0 | K7: 4 | L7: 58 | M7: 0 | N7: 0 | O7: 0 | P7: 0 | Q7: 0 | R7: 0 | S7: 0 | T7: 0
A8: 2 | B8: 7 | C8: 105 | D8: 15 | E8: 5 | F8: 75 | G8: 1 | H8: 15 | I8: 0 | J8: 0 | K8: 1 | L8: 15 | M8: 0 | N8: 0 | O8: 0 | P8: 0 | Q8: 0 | R8: 0 | S8: 0 | T8: 0
A9: 3 | B9: 8 | C9: 120 | D9: 15 | E9: 5 | F9: 75 | G9: 0 | H9: 0 | I9: 0 | J9: 0 | K9: 2 | L9: 30 | M9: 0 | N9: 0 | O9: 1 | P9: 15 | Q9: 0 | R9: 0 | S9: 0 | T9: 0
A10: 4 | B10: 6 | C10: 90 | D10: 15 | E10: 3 | F10: 45 | G10: 2 | H10: 30 | I10: 0 | J10: 0 | K10: 1 | L10: 15 | M10: 0 | N10: 0 | O10: 0 | P10: 0 | Q10: 0 | R10: 0 | S10: 0 | T10: 0
A11: 1-4 классы | B11: 29 | C11: =SUM(C7:C10) -> 463 | D11: 15.9 | E11: =SUM(E7:E10) -> 17 | F11: =SUM(F7:F10) -> 255 | G11: =SUM(G7:G10) -> 5 | H11: =SUM(H7:H10) -> 75 | I11: 0 | J11: 0 | K11: =SUM(K7:K10) -> 8 | L11: =SUM(L7:L10) -> 118 | M11: 0 | N11: 0 | O11: 1 | P11: 15 | Q11: 0 | R11: 0 | S11: 0 | T11: 0
A12: 5 | B12: 4 | C12: 60 | D12: 15 | E12: 0 | F12: 0 | G12: 1 | H12: 15 | I12: 0 | J12: 0 | K12: 0 | L12: 0 | M12: 1 | N12: 15 | O12: 2 | P12: 30 | Q12: 0 | R12: 0 | S12: 0 | T12: 0
A13: 6 | B13: 6 | C13: 90 | D13: 15 | E13: 0 | F13: 0 | G13: 0 | H13: 0 | I13: 1 | J13: 15 | K13: 0 | L13: 0 | M13: 0 | N13: 0 | O13: 3 | P13: 45 | Q13: 0 | R13: 0 | S13: 2 | T13: 30
A14: 7 | B14: 5 | C14: 75 | D14: 15 | E14: 0 | F14: 0 | G14: 1 | H14: 15 | I14: 1 | J14: 15 | K14: 0 | L14: 0 | M14: 0 | N14: 0 | O14: 3 | P14: 45 | Q14: 0 | R14: 0 | S14: 0 | T14: 0
A15: 8 | B15: 7 | C15: 105 | D15: 15 | E15: 2 | F15: 30 | G15: 0 | H15: 0 | I15: 1 | J15: 15 | K15: 1 | L15: 15 | M15: 0 | N15: 0 | O15: 2 | P15: 30 | Q15: 1 | R15: 15 | S15: 0 | T15: 0
A16: 9 | B16: 12 | C16: 180 | D16: 15 | E16: 1 | F16: 15 | G16: 2 | H16: 30 | I16: 1 | J16: 15 | K16: 2 | L16: 30 | M16: 2 | N16: 30 | O16: 3 | P16: 45 | Q16: 1 | R16: 15 | S16: 0 | T16: 0
A17: 5-9 классы | B17: =SUM(B12:B16) -> 34 | C17: 510 | D17: 15 | E17: =SUM(E12:E16) -> 3 | F17: 45 | G17: 4 | H17: 60 | I17: 4 | J17: 60 | K17: 3 | L17: 45 | M17: 3 | N17: 45 | O17: 13 | P17: 195 | Q17: 2 | R17: 30 | S17: 2 | T17: 30
A18: 10 | B18: 3 | C18: 45 | D18: 15 | E18: 0 | F18: 0 | G18: 0 | H18: 0 | I18: 0 | J18: 0 | K18: 2 | L18: 30 | M18: 1 | N18: 15 | O18: 0 | P18: 0 | Q18: 0 | R18: 0 | S18: 0 | T18: 0
A19: 11 | B19: 3 | C19: 45 | D19: 15 | E19: 0 | F19: 0 | G19: 1 | H19: 15 | I19: 0 | J19: 0 | K19: 1 | L19: 15 | M19: 1 | N19: 15 | O19: 0 | P19: 0 | Q19: 0 | R19: 0 | S19: 0 | T19: 0
A20: 10-11 классы | B20: 6 | C20: 90 | D20: 15 | E20: 0 | F20: 0 | G20: 1 | H20: 15 | I20: 0 | J20: 0 | K20: 3 | L20: 45 | M20: 2 | N20: 30 | O20: 0 | P20: 0 | Q20: 0 | R20: 0 | S20: 0 | T20: 0
A21: 1-11 классы | B21: 69 | C21: 1063 | D21: 15.4 | E21: 20 | F21: 300 | G21: 10 | H21: 150 | I21: 4 | J21: 60 | K21: 14 | L21: 208 | M21: 5 | N21: 75 | O21: 14 | P21: 210 | Q21: 2 | R21: 30 | S21: 2 | T21: 30
B24: Директор МБОУ "СОШ №10" | F24: _________________ | H24: И.А.Бодрова

Sheet часы внеуроч
A2: Информация о часах внеурочной работы на 2023-2024 учебный год
A4: Класс | B4: Кол-во часов | C4: Наименование кружка | D4: Направление | E4: Ф.И.О.педагога | F4: Основное место работы | G4: Образование | H4: Должность
A5: 1-2 кл | B5: 12 | C5: Современное моделирование | D5: техническое | E5: Мансурова И.В. | F5: ЦДТ №16 «Огниво» | G5: Высшее | H5: Педагог дополнительного образования
A6: 1-3 кл | B6: 12 | C6: Современное моделирование | D6: техническое | E6: Серова Т.И. | F6: ЦДТ №16 «Огниво» | G6: Высшее | H6: Педагог дополнительного образования
A7: 3Б | B7: 2 | C7: мир информатики | D7: техническое | E7: Каретникова Н.Б. | F7: МБОУ «СОШ №10» | G7: Высшее | H7: Учитель начальных классов
A8: 1а,б,в,г | B8: 4 | C8: Я люблю английский | D8: художественно-эстетическое | E8: Сафина Р.Ш. | F8: МБОУ «СОШ №10» | G8: Высшее | H8: Учитель английского языка
A9: 1 кл | B9: 4 | C9: я- мастер | D9: техническое | E9: Фархутдинова Р.Р. | F9: МБОУ «СОШ№10» | G9: Высшее | H9: Учитель начальных классов
A10: 3-4 кл | B10: 3 | C10: «Радуга творчества» (технический кружок) | D10: техническое | E10: Гарайшина Ф.Х. | F10: МБОУ «СОШ №10» | G10: Высшее | H10: Учитель изобразительного искусства
A11: 1а, б, в, г | B11: 4 | C11: Дорожная азбука | D11: социально-педагогическое | E11: Тахаутдинова Ф.К. | F11: МБОУ «СОШ №10» | G11: Высшее | H11: Учитель ОБЖ
A12: 2б | B12: 4 | C12: 7 нот | D12: художественно-эстетическое | E12: Абдурахманова Р.У. | F12: МБОУ «СОШ №10» | G12: Высшее | H12: учитель музыки
A13: 4д | B13: 2 | C13: ЮИД | D13: социально-педагогическое | E13: Лутфуллина Л.З. | F13: МБОУ «СОШ№10» | G13: Высшее | H13: Учитель начальных классов
A14: 1б | B14: 2 | C14: Русский театр | D14: художественно-эстетическое | E14: Горячева О.Н. | F14: МБОУ «СОШ№10» | G14: Высшее | H14: Учитель начальных классов
A15: 4 | B15: 4 | C15: Баскетбол | D15: физкультурно спортивное | E15: Ульданова Д.Р. | F15: ДЮСШ №10 | G15: Высшее | H15: Учитель физической культуры
A16: 3а | B16: 2 | C16: ЮИД | D16: социально-педагогическое | E16: Насыбуллина Л.Ш. | F16: МБОУ «СОШ№10» | G16: Высшее | H16: Учитель начальных классов
A17: 8в | B17: 2 | C17: Добрые сердца | D17: социально-педагогическое | E17: Шавалиева Р.Ф. | F17: МБОУ «СОШ№10» | G17: Высшее | H17: учитель татарского языка и литературы
A18: 6г | B18: 2 | C18: Музей "Наследие". Люби изнай свой край. | D18: туристически краеведческое | E18: Фефилова Э.Р. | F18: МБОУ «СОШ№10» | G18: Высшее | H18: Учитель истории
A19: 9б | B19: 2 | C19: Наследие. | D19: социально-гуманитарный | E19: Гайфуллина А.Х. | F19: МБОУ «СОШ№10» | G19: Высшее | H19: учитель татарского языка
A20: 8 | B20: 2 | C20: Наследие. | D20: социально-гуманитарный | E20: Арсланова З.С. | F20: =F18 -> МБОУ «СОШ№10» | G20: Высшее | H20: учитель татарского языка
A21: 10.б | B21: 4 | C21: Наукогрыз | D21: социально-педагогическое | E21: Ивасько Я.В. | F21: МБОУ «СОШ№10» | G21: Высшее | H21: Учитель английского языка
A22: 6 кл. | B22: 6 | C22: Волейбол | D22: физкультурно спортивное | E22: Азиуллин P.P. | F22: МБОУ «СОШ№10» | G22: Высшее | H22: Учитель физической культуры
A23: 5е | B23: 4 | C23: Волейбол | D23: физкультурно спортивное | E23: Назмеева Ф.Н. | F23: МБОУ «СОШ№10» | G23: Высшее | H23: Учитель физической культуры
A24: 7 кл | B24: 6 | C24: волейбол | D24: физкультурно спортивное | E24: Мухамадиев А.Ю. | F24: МБОУ «СОШ№10» | G24: Высшее | H24: Учитель физической культуры
A25: 8б, 5а | B25: 3 | C25: Патриот | D25: физкультурно спортивное | E25: Ешмурзинова И.Н. | F25: МБОУ «СОШ№10» | G25: Высшее | H25: Учитель физической культуры
A26: 9 кл | B26: 2 | C26: Берегите планету | D26: эколого-биологическое | E26: Тукмачева М.М. | F26: МБОУ «СОШ№10» | G26: Высшее | H26: учитель биологии
A27: 8в | B27: 2 | C27: Берегите планету | D27: эколого-биологическое | E27: Хасанова К.А. | F27: МБОУ «СОШ№10» | G27: Высшее | H27: педагог-организатор
A28: 7а | B28: 2 | C28: Патриот | D28: военно-патриотическое | E28: Сахибуллина Я.С. | F28: МБОУ «СОШ№10» | G28: Высшее | H28: учитель татарского языка
A29: 8.9 | B29: 4 | C29: Патриот | D29: военно-патриотическое | E29: Луценко В.В. | F29: МБОУ «СОШ№10» | G29: Высшее | H29: Преподаватель-организатор ОБЖ
A30: 9 кл | B30: 2 | C30: Покоритель географических широт | D30: естественно научное | E30: Гильфанова Л.Р. | F30: МБОУ «СОШ№10» | G30: Высшее | H30: Учитель географии
A31: 9 кл | B31: 2 | C31: В стране электроники | D31: техническое | E31: Заляев Т.И. | F31: МБОУ «СОШ№10» | G31: Высшее | H31: учитель физики
A32: 5-7 кл | B32: 2 | C32: Семьеведение | D32: социально-педагогическое | E32: Журавлева А.С. | F32: МБОУ «СОШ№10» | G32: Высшее | H32: учитель математики
A33: 9 | B33: 2 | C33: Актуальные вопросы обществознания | D33: социально-экономическое | E33: Магдеева А.М. | F33: МБОУ «СОШ№10» | G33: Высшее | H33: учитель обществознания
A34: 9 | B34: 2 | C34: Актуальные вопросы обществознания | D34: социально-экономическое | E34: Ижбулатова Е.Г. | F34: МБОУ «СОШ№10» | G34: Высшее | H34: учитель обществознания
A35: 9 | B35: 4 | C35: Актуальные вопросы обществознания | D35: социально-экономическое | E35: Салеева Р.Я. | F35: МБОУ «СОШ№10» | G35: Высшее | H35: учитель обществознания
A36: 9 | B36: 2 | C36: Эрудит | D36: естественно научное | E36: Цыбулько Л. М. | F36: МБОУ «СОШ№10» | G36: Высшее | H36: учитель математики
A37: 9 | B37: 2 | C37: Эрудит | D37: естественно научное | E37: Алимова А.А. | F37: МБОУ «СОШ№10» | G37: Высшее | H37: учитель математики
A38: 9 | B38: 2 | C38: Эрудит | D38: естественно научное | E38: Носкова Е.Н. | F38: МБОУ «СОШ№10» | G38: Высшее | H38: учитель математики
A39: 9 | B39: 2 | C39: Глокая Куздра | D39: художественно-эстетическое | E39: Корчагина А.Ю. | F39: МБОУ «СОШ№10» | G39: Высшее | H39: учитель русского языка и литературы
A40: 7д | B40: 2 | C40: ЩИТ (отряд профилактики) | D40: социально-педагогическое | E40: Касумова Т.Г. | F40: МБОУ «СОШ№10» | G40: Высшее | H40: Педагог-организатор
A41: 8г | B41: 2 | C41: СМС дети | D41: социально-педагогическое | E41: Халикова Г.А. | F41: МБОУ «СОШ№10» | G41: Высшее | H41: учитель татарского языка
A42: 8д | B42: 2 | C42: Педгруппа | D42: социально-педагогическое | E42: Галимзянова З.Ф. | F42: МБОУ «СОШ№10» | G42: Высшее | H42: учитель татарского языка
A43: 10б | B43: 6 | C43: театральный английский | D43: художественно-эстетическое | E43: Лех Ю.А. | F43: МБОУ «СОШ№10» | G43: Высшее | H43: учитель английского языка
A44: 11 кл | B44: 2 | C44: В стране электроники | D44: техническое | E44: Шурпа М.А. | F44: МБОУ «СОШ№10» | G44: Высшее | H44: учитель физики
A45: 11 | B45: 2 | C45: Глокая Куздра | D45: художественно-эстетическое | E45: Склянов О.В. | F45: МБОУ «СОШ№10» | G45: Высшее | H45: учитель русского языка и литературы
A46: 11 кл | B46: 2 | C46: Эрудит | D46: естественно научное | E46: Степанова Л.А. | F46: МБОУ «СОШ№10» | G46: Высшее | H46: учитель математики
A47: 11 | B47: 2 | C47: Живой английский | D47: художественно-эстетическое | E47: Ялышева А.А. | F47: МБОУ «СОШ№10» | G47: Высшее | H47: Учитель английского языка
A48: ИТОГО | B48: =SUM(B5:B47) -> 138
A52: Директор МБОУ "СОШ №10" | D52: _________________ | E52: И.А.Бодрова
